Cogmind - Beta 12 X4 @@@ ROGUE MODE // 2022.11.21 @ 20:56:10 Player: aperiodic Result: Destroyed by YI-UF0 with YI-UF0's Doublenader Performance ------------- Evolutions (0) 0 Regions Visited (2) 400 Robots Destroyed (30) 150 Value Destroyed (425) 425 Prototype IDs (4) 80 Alien Tech Used (0) 0 Bonus (0) 0 TOTAL SCORE: 1055 Bonus ------- None Cogmind --------- Core Integrity 0/250 Matter 267/300 Energy 98/100 System Corruption 0% Temperature Cool (0) Movement Treading (240) Ox1 Location -10/Mines Parts ------- > --- POWER (1) -------- (None) > --- PROPULSION (2) --- Light Treads > --- UTILITY (2) ------ High-capacity Storage Unit > --- WEAPON (2) ------- (None) > --- INVENTORY (20) --- Light Ion Engine Light Ion Engine Light Treads Light Treads Wheel Wheel Wheel Wheel Wheel Wheel Huge Storage Unit Light Armor Plating Mining Laser Peak State ------------ > --- POWER ------------ Ion Engine > --- PROPULSION ------- Wheel Wheel > --- UTILITY ---------- High-capacity Storage Unit Light Armor Plating > --- WEAPON ----------- EM Pulse Gun EM Pulse Gun > --- INVENTORY -------- Light Ion Engine Light Ion Engine Light Treads Light Treads Wheel Huge Storage Unit Light Armor Plating Small Laser Light Cannon Mining Laser [Rating: 8] Favorites ----------- Power Ion Engine Engine Ion Engine Propulsion Wheel Treads Light Treads Wheel Wheel Utility High-capacity Storage Unit Storage High-capacity Storage Unit Protection Light Armor Plating Weapon EM Pulse Gun Energy Gun EM Pulse Gun Ballistic Cannon Light Cannon Build | -11 -10 -10 ------- Run | Scr Mat Min Slots Evolved . | . . . Power . | . . . Propulsion . | . . . Utility . | . . . Weapon . | . . . Parts Attached 28 | 7 12 9 Power 3 | 1 2 . Engine 3 | 1 2 . Core . | . . . Reactor . | . . . Propulsion 8 | 2 3 3 Treads 1 | . . 1 Leg . | . . . Wheel 7 | 2 3 2 Hover . | . . . Flight . | . . . Utility 5 | 1 4 . Device . | . . . Storage 4 | 1 3 . Processor . | . . . Hackware . | . . . Protection 1 | . 1 . Artifact . | . . . Weapon 12 | 3 3 6 Energy Gun 10 | 3 3 4 Energy Cannon . | . . . Ballistic Gun . | . . . Ballistic Cannon 2 | . . 2 Launcher . | . . . Special Weapon . | . . . Impact Weapon . | . . . Slashing Weapon . | . . . Piercing Weapon . | . . . Special Melee Weapon . | . . . Unidentified Prototypes . | . . . Parts Lost 9 | . 1 8 Power 1 | . . 1 Propulsion 2 | . . 2 Utility 1 | . . 1 Weapon 5 | . 1 4 Highest Loss Streak 8 | . 1 8 To Critical Strikes . | . . . Average Slot Usage (%) 90 | . 90 91 Engine 13 | . 13 12 Wheel 27 | . 28 24 Storage 14 | . 14 14 Protection 6 | . 5 12 Energy Gun 26 | . 27 22 Naked Turns . | . . . Heaviest Build 52 | 12 52 52 Greatest Support 32 | 20 20 32 Greatest Overweight (x) 5 | . 2 5 Average Overweight (x) 1 | . 1 1 Largest Inventory Capacity 20 | 8 20 20 Average Capacity 15 | 7 14 20 Most Carried 16 | 4 16 16 Average Carried 9 | 2 8 15 Final Capacity 20 | 8 20 20 Final Carried 16 | 4 16 13 Class Distribution -------------------- 100% | Mutant Dominant Class ---------------- Mutant | -10/Materials Mutant | -10/Mines Resources | -11 -10 -10 ----------- Run | Scr Mat Min Matter Collected 454 | 248 139 67 Remotely . | . . . Salvage Created 1008 | . 536 472 Parts 63 | . 40 23 Haulers Intercepted 2 | . 2 . Recyclers Shooed 3 | . 1 2 Parts Field Recycled . | . . . Retrieved Matter . | . . . Parts Self-Destructed . | . . . Prevented . | . . . Kills | -11 -10 -10 ------- Run | Scr Mat Min Combat Hostiles Destroyed 17 | . 12 5 Guns 14 | . 10 4 AOE 3 | . 2 1 Classes Destroyed 7 | . 6 1 Worker 1 | . . 1 Builder 3 | . 1 2 Hauler 2 | . 2 . Recycler 4 | . 1 3 Watcher 3 | . 3 . Swarmer 12 | . 9 3 Grunt 5 | . 3 2 Best Kill Streak 6 | . 6 4 Combat Bots Only 6 | . 6 3 Max Kills in Single Turn 2 | . 2 2 Gunslinging 1 | . 1 1 Exploded 2 | . 2 1 Melee . | . . . Uniques/NPCs Destroyed . | . . . Combat | -11 -10 -10 -------- Run | Scr Mat Min Damage Taken 1059 | . 215 844 Core 268 | . 10 258 Absorbed by Shields . | . . . Regen/Repaired (Parts) 34 | . 34 . Core Remaining (%) 100 | 100 . . Volleys Fired 65 | . 37 28 Largest 2 | . 2 2 Hottest 80 | . 80 80 Shots Fired 119 | . 73 46 Gun 109 | . 73 36 Cannon 10 | . . 10 Launcher . | . . . Special . | . . . Kinetic 10 | . . 10 Thermal 6 | . . 6 Explosive . | . . . Electromagnetic 103 | . 73 30 Robot Hit Streak 8 | . 8 5 Robot Miss Streak 4 | . 4 2 Penetration Max . | . . . Secondary Targets 3 | . 2 1 Max Gunslinging Chain 1 | . 1 1 Shots Hit Robots 73 | . 42 31 Core Hits 35 | . 22 13 Critical Kills . | . . . Critical Parts Destroyed . | . . . Critical Strikes . | . . . Melee Attacks . | . . . Impact . | . . . Slashing . | . . . Piercing . | . . . Sneak Attacks . | . . . Combat Hostiles . | . . . Follow-up Attacks . | . . . Damage Inflicted 1410 | . 805 605 Guns 853 | . 580 273 Cannons 165 | . . 165 Explosions 392 | . 225 167 Melee . | . . . Ramming . | . . . Kinetic 165 | . . 165 Thermal 436 | . 225 211 Explosive . | . . . Electromagnetic 809 | . 580 229 Impact . | . . . Slashing . | . . . Piercing . | . . . Highest Corruption . | . . . Average Corruption . | . . . Corruption Purged . | . . . Corruption Blocked . | . . . Overload Shots . | . . . Overflow Damage 29 | . 1 28 Projectiles . | . . . Explosions 29 | . 1 28 Melee . | . . . Knockbacks . | . . . Impact . | . . . Kinetic . | . . . Secondary . | . . . Self-Inflicted Damage 37 | . 37 . Shots 1 | . 1 . Rammed . | . . . Targets Rammed . | . . . Kicked . | . . . Crushed . | . . . Highest Temperature 243 | . 126 243 Average Temperature 53 | . 42 72 Received Heat Transfer 24 | . 6 18 Siege Activations . | . . . Robots Corrupted . | . . . Combat Hostiles . | . . . Parts Fried 3 | . 3 . Impact Corruptions . | . . . Robots Melted . | . . . Combat Hostiles . | . . . Parts Melted . | . . . Heat Transferred 600 | . 350 250 Parts Sabotaged . | . . . Parts Stolen . | . . . Parts Stripped . | . . . Power Chain Reactions 7 | . 5 2 Missiles Intercepted . | . . . Alert | -11 -10 -10 ------- Run | Scr Mat Min Peak Influence 284 | . 284 225 Initial 64 | . . 64 Average 134 | . 135 157 Maximum Alert Level 1 | . 1 1 Low Security (%) 95 | 100 97 85 Level 1 4 | . 2 14 Level 2 . | . . . Level 3 . | . . . Level 4 . | . . . Level 5 . | . . . High Security . | . . . Max Security . | . . . Squads Dispatched 2 | . 2 . Investigation 2 | . 2 . Extermination . | . . . Reinforcement . | . . . Assault . | . . . Garrison . | . . . Intercept . | . . . Searches Triggered . | . . . Construction Impeded . | . . . Haulers Reinforced . | . . . Active Scanning Responses . | . . . Cargo Convoy Interrupts . | . . . Stealth | -11 -10 -10 --------- Run | Scr Mat Min Distress Signals 1 | . 1 . Communications Jammed . | . . . Distress Signals . | . . . Times Spotted 22 | . 16 6 Peak Tracking Total 4 | . 4 3 Tactical Retreats . | . . . Traps | -11 -10 -10 ------- Run | Scr Mat Min Traps Triggered 1 | . 1 . Indirectly . | . . . Trap Hack Attempts . | . . . Triggered . | . . . Disarmed . | . . . Reprogrammed . | . . . Reused . | . . . Traps Extracted . | . . . Installed . | . . . Triggered . | . . . Machines | -11 -10 -10 ---------- Run | Scr Mat Min Machines Disabled 3 | . 3 . Max in Single Turn 1 | . 1 . Machines Sabotaged . | . . . Overloaded Fab Kills . | . . . Hacking | -11 -10 -10 --------- Run | Scr Mat Min Machines Accessed 10 | . 10 . Terminals 8 | . 8 . Fabricators . | . . . Repair Stations 1 | . 1 . Recycling Units 1 | . 1 . Scanalyzers . | . . . Garrison Access . | . . . Total Hacks 32 | . 32 . Successful 19 | . 19 . Failed 12 | . 12 . Catastrophic 1 | . 1 . Database Lockouts 1 | . 1 . Manual 18 | . 18 . Terminals 28 | . 28 . Fabricators . | . . . Repair Stations 2 | . 2 . Recycling Units 2 | . 2 . Scanalyzers . | . . . Garrison Access . | . . . Terminal Hacks 13 | . 13 . Robot Analysis 4 | . 4 . Prototype ID Bank 4 | . 4 . Terminal Index 1 | . 1 . Locate Traps 3 | . 3 . Recall Investigation 1 | . 1 . Fabricator Hacks . | . . . Repair Station Hacks 2 | . 2 . Scan Component 1 | . 1 . Repair 1 | . 1 . Recycling Unit Hacks . | . . . Scanalyzer . | . . . Garrison Access Hacks . | . . . Unauthorized Hacks 4 | . 4 . Terminals 3 | . 3 . Track 1 | . 1 . Botnet 1 | . 1 . Operators 1 | . 1 . Fabricators . | . . . Repair Stations . | . . . Recycling Units 1 | . 1 . Tunnel 1 | . 1 . Scanalyzers . | . . . Garrison Access . | . . . Data Cores Recovered . | . . . Used . | . . . Hacking Detections 8 | . 8 . Full Trace Events 1 | . 1 . Feedback Events . | . . . Feedback Blocked . | . . . Robot Schematics Acquired . | . . . Robots Built . | . . . Authchips . | . . . Time . | . . . Total Robot Build Rating . | . . . Part Schematics Acquired . | . . . Parts Built . | . . . Authchips . | . . . Time . | . . . Total Part Build Rating . | . . . Parts Repaired 1 | . 1 . Time 26 | . 26 . Parts Recycled . | . . . Recycled Matter . | . . . Retrieved Matter . | . . . Retrieved Components . | . . . Parts Scanalyzed . | . . . Part Schematics Acquired . | . . . Parts Damaged . | . . . Bothacking | -11 -10 -10 ------------ Run | Scr Mat Min Used RIF Installer . | . . . Robots Hacked . | . . . Non-combat . | . . . Combat . | . . . Robot Hacks Applied . | . . . Relay Couplers Released . | . . . Fabnet Peak Effective % . | . . . Robots Rewired . | . . . Allies Hacked . | . . . Hacks Repelled . | . . . Allies | -11 -10 -10 -------- Run | Scr Mat Min Total Allies . | . . . Largest Group . | . . . Highest-Rated Group . | . . . Highest-Rated Ally . | . . . Total Orders . | . . . Ally Attacks . | . . . Total Damage . | . . . Kills . | . . . Allies Corrupted . | . . . Allies Melted . | . . . Intel | -11 -10 -10 ------- Run | Scr Mat Min Robot Analysis Total 4 | . 4 . Derelict Logs Recovered . | . . . Drone Launches . | . . . Drone Recoveries . | . . . Exploration | -11 -10 -10 ------------- Run | Scr Mat Min Turns Passed 1316 | 51 1051 214 Spaces Moved 1021 | 46 870 105 Core 2 | 2 . . Treads . | . . . Legs . | . . . Wheels 1019 | 44 870 105 Hover . | . . . Flight . | . . . Fastest Speed 50 | 50 80 105 Average Speed 96 | 78 95 114 Slowest Speed 155 | 80 110 155 Overloaded Moves . | . . . Propulsion Burnouts . | . . . Robots Hopped . | . . . Cave-ins Triggered . | . . . Exploration Rate (%) 42 | 3 99 26 Regions Visited 2 Branch Regions 1 Pre-discovered Areas 1 | . 1 . Known Exits Taken . | . . . Unknown Exits Taken 2 | 1 1 . Scrap Searched . | . . . Spaces Dug . | . . . Terrain Destroyed 17 | . 9 8 Melee . | . . . Projectile . | . . . AOE 17 | . 9 8 Terrain Rammed . | . . . Walls Destroyed . | . . . Machines Disabled . | . . . Actions | -11 -10 -10 --------- Run | Scr Mat Min Total 1222 | 57 1013 152 Wait 92 | . 84 8 Move 1019 | 45 869 105 Hop . | . . . Pick Up 13 | 5 8 . Fast Attach 13 | 5 6 2 Attach 5 | 1 1 3 Detach . | . . . Swap 10 | 1 5 4 Drop 5 | . 3 2 Fire 65 | . 37 28 Melee . | . . . Ram . | . . . Kick . | . . . Crush . | . . . Escape Stasis . | . . . Rewire . | . . . Trap . | . . . Miscellaneous . | . . . Route ------- -11/Scrapyard -10/Materials (discovered 4 exits: [*Mat x3] / [*Min]) -10/Mines (discovered 2 exits: [*Mat x2]) History --------- Turn | Location | Event 6 | -11/Scrapyard | Discovered new exit (range 15) 52 | -11/Scrapyard | Entered Materials 97 | -10/Materials | Discovered new exit (range 12) 318 | -10/Materials | Build established: Mutant 324 | -10/Materials | Repaired EM Pulse Gun 358 | -10/Materials | Discovered new exit (range 9) 642 | -10/Materials | Discovered new exit (range 13) 720 | -10/Materials | Central database locked down 1077 | -10/Materials | Discovered new exit (range 13) 1103 | -10/Materials | Entered Mines 1226 | -10/Mines | Discovered new exit (range 6) 1270 | -10/Mines | Discovered new exit (range 12) 1301 | -10/Mines | Core integrity fell below 50% 1309 | -10/Mines | Core integrity fell below 20% 1317 | -10/Mines | Destroyed by YI-UF0 with YI-UF0's Doublenader Last Messages --------------- 01302_ K-01 Serf collects debris. 01302_ Sml. Laser destroyed. 01303_ YI-UF0 mumbles something. 01304_ The unstable cave ceiling collapses. 01306_ U-05 Engineer lays Concrete. 01308_ The unstable cave ceiling collapses. 01308_ U-05 Engineer lays Concrete. 01308_ U-05 Engineer builds a Wall. 01308_ Com. Wheel destroyed. 01309_ The unstable cave ceiling collapses. 01309_ U-05 Engineer lays Concrete. 01311_ The unstable cave ceiling collapses. 01311_ U-05 Engineer lays Concrete. 01312_ The unstable cave ceiling collapses. 01312_ U-05 Engineer builds a Wall. 01312_ U-05 Engineer lays Concrete. 01313_ The unstable cave ceiling collapses. 01314_ U-05 Engineer destroyed. 01314_ YI-UF0: "WHOMP!" 01317_ Lgt. Cannon destroyed. Map ----- +----------------------------------------------------+ | | | | | | | | | | | ??????????????????????????????????????????????? | | ??????????????????????????????????????? ??????? | | ??????????????????????????????????????? ??????? | | ??????????????????????????????????????? #?????? | | ??????????????????????????????????????? ?????? | | ???????????????????????????????????????